[Event "1st FIDE Olympiad DIS 2023"]
[Site "Belgrade"]
[Date "2023.02.02"]
[Round "4.3"]
[White "Rakhatbekov, Tilegen"]
[Black "Cajzler, Hinko"]
[Result "1/2-1/2"]
[ECO "A80"]
[WhiteElo "1489"]
[BlackElo "2060"]
[Annotator "TA"]
[PlyCount "63"]
[EventDate "2023.01.30"]
[EventType "team-tourn"]
[EventCountry "SRB"]
[SourceTitle "playchess.com"]
[Source "ChessBase"]
[SourceQuality "1"]
[WhiteTeam "Kyrgyzstan"]
[BlackTeam "Croatia"]
[WhiteTeamCountry "KGZ"]
[BlackTeamCountry "CRO"]
[TimeControl "40/5400+30:1800+30"]

{[%evp 9,63,25,26,41,29,38,91,61,68,68,76,61,66,74,87,81,87,93,98,66,65,67,85,76,73,79,76,-14,-18,-43,-43,-48,-34,-50,-35,-50,-45,-52,-14,-18,-2,-21,11,0,2,-28,-31,-62,0,0,0,0,0,0,0,0]} 1. d4 {[%emt 0:00:14]} f5 {[%emt 0:00:29]} 2. Nf3 {[%emt 0:00:46]} Nf6 {[%emt 0:00:13]} 3. Bf4 {[%emt 0:00:33]} d6 {[%emt 0:00:25]} 4. e3 {[%emt 0:01:07]} g6 {[%emt 0:00:22]} 5. Bc4 {[%emt 0:00:59]} e6 {[%emt 0:00:17]} 6. Nbd2 {[%emt 0:01:09] A80: Dutch Defence: Unusual White second moves.} Bg7 {[%emt 0:00:20]} 7. O-O {[%emt 0:00:22]} d5 {[%emt 0:00:31]} (7... O-O $14) 8. Bd3 {[%emt 0:00:39] White is better.} O-O {[%emt 0:00:18][%cal Oc7c5]} 9. c4 {[%emt 0:00:28] [#]} c6 $146 {[%emt 0:00:12]} ({Predecessor:} 9... Bd7 10. Rc1 Nc6 11. a3 a6 12. b4 h6 13. b5 Ne7 14. a4 g5 15. Be5 Ng6 16. Bxf6 Bxf6 17. cxd5 exd5 {1-0 Nixon,A-Coulter,R IECG C2.1997.0.00064}) 10. Ne5 {[%emt 0:00:39]} Nbd7 {[%emt 0:05:07]} 11. Ndf3 {[%emt 0:00:13] White has more active pieces. The black rooks are badly placed.} Nh5 {[%emt 0:00:53]} 12. Nxd7 {[%emt 0:00:15]} Bxd7 {[%emt 0:01:18]} 13. Bd6 {[%emt 0:01:19]} Re8 {[%emt 0:00:41]} 14. Be2 {[%emt 0:01:01]} Nf6 {[%emt 0:00:16]} 15. Be5 {[%emt 0:00:15]} Qe7 {[%emt 0:04:00]} 16. c5 {[%emt 0:00:41]} Ne4 {[%emt 0:01:12]} 17. Bxg7 {[%emt 0:04:07]} Qxg7 {[%emt 0:00:18]} 18. Ne5 {[%emt 0:00:11] [#]} (18. Bd3 $16) 18... Nxc5 $1 $11 {[%emt 0:00:52][%cal Od7c8][%mdl 64] Deflection} 19. Nxg6 {[%emt 0:00:30]} (19. b4 Ne4) 19... hxg6 {[%emt 0:00:13]} 20. dxc5 {[%emt 0:00:12]} e5 {[%emt 0:00:54]} 21. b4 {[%emt 0:00:30]} Qh6 {[%emt 0:01:24]} 22. b5 {[%emt 0:00:51]} Re7 {[%emt 0:00:10]} 23. f4 {[%emt 0:02:05]} exf4 {[%emt 0:01:16]} ({Resist} 23... cxb5 24. Qxd5+ Be6 25. Qxe5 $16) 24. exf4 {[%emt 0:00:05]} Rae8 {[%emt 0:00:25]} 25. Bf3 {[%emt 0:00:48]} Kg7 {[%emt 0:00:18]} (25... Qxf4 $2 26. Bxd5+ cxd5 27. Rxf4 $18) 26. Qd2 {[%emt 0:00:43]} Qh4 {[%emt 0:01:29]} 27. g3 {[%emt 0:00:09]} (27. a4 {keeps more tension.} Re3 28. a5 a6 29. bxc6 bxc6 30. Qb4) 27... Qf6 {[%emt 0:00:22]} 28. Rae1 {[%emt 0:01:17]} Rxe1 {[%emt 0:05:10]} (28... cxb5 $15 29. Rxe7+ (29. Bxd5 $2 {is the wrong capture.} Rxe1 {[%mdl 64] Deflection} 30. Rxe1 Rxe1+ 31. Qxe1 Qd4+ 32. Kf1 Qxd5 $19) 29... Rxe7) 29. Rxe1 {[%emt 0:00:04] The position is equal.} Rxe1+ {[%emt 0:00:12]} 30. Qxe1 {[%emt 0:00:00]} cxb5 {[%emt 0:00:12]} 31. Qd2 $1 {[%emt 0:00:54]} ({Don't play} 31. Qd1 Qc3 32. Bxd5 Qxc5+ 33. Kf1 b4 $17) 31... Bc6 {[%emt 0:04:26] [#] Strongly threatening ...d4.} 32. Bxd5 {[%emt 0:00:50] Weighted Error Value: White=0.14 (very precise) /Black=0.12 (very precise)} 1/2-1/2

[Event "1st FIDE Olympiad DIS 2023"]
[Site "Belgrade"]
[Date "2023.02.02"]
[Round "4.4"]
[White "Dukaczewski, Piotr"]
[Black "Bernardo, Darry"]
[Result "0-1"]
[ECO "B10"]
[WhiteElo "2131"]
[BlackElo "2070"]
[Annotator "TA"]
[PlyCount "102"]
[EventDate "2023.01.30"]
[EventType "team-tourn"]
[EventCountry "SRB"]
[SourceTitle "playchess.com"]
[Source "ChessBase"]
[SourceQuality "1"]
[WhiteTeam "Poland"]
[BlackTeam "Philippines"]
[WhiteTeamCountry "POL"]
[BlackTeamCountry "PHI"]
[TimeControl "40/5400+30:1800+30"]

{[%evp 9,102,0,16,18,27,15,29,23,24,26,47,48,49,65,84,83,82,79,97,101,113,83,114,67,71,64,67,70,64,61,58,75,57,65,110,112,108,98,101,61,51,14,14,19,20,20,15,20,27,-29,-42,-42,0,0,0,-25,-9,-44,-45,-56,-37,-47,-41,-30,-30,-54,-25,-101,-100,-100,-95,-136,-124,-227,-224,-324,-321,-361,-362,-458,-442,-447,-447,-424,-446,-429,-444,-725,-725,-708,-702,-702,-693,-658,-646]} 1. e4 {[%emt 0:00:28]} c6 {[%emt 0:02:21]} 2. Nf3 {[%emt 0:00:37][%cal Bg1f3,Bf3e1,Be1d3][%mdl 32]} d5 {[%emt 0:00:58]} 3. d3 {[%emt 0:00:19]} dxe4 {[%emt 0:06:45]} 4. dxe4 {[%emt 0:00:21]} Qxd1+ {[%emt 0:00:14]} 5. Kxd1 {[%emt 0:00:29]} Bg4 {[%emt 0:00:35]} 6. Be2 {[%emt 0:00:16] B10: Caro-Kann: 2 d3 and 2 c4.} Nd7 {[%emt 0:00:33]} 7. Ne1 {[%emt 0:00:36]} Bxe2+ {[%emt 0:06:05]} 8. Kxe2 {[%emt 0:00:10] White has an edge.} Ngf6 {[%emt 0:00:10]} 9. f3 {[%emt 0:00:43]} e5 {[%emt 0:02:47]} 10. Nd3 {[%emt 0:00:30]} O-O-O {[%emt 0:01:48]} 11. Be3 Bd6 {[%emt 0:05:05]} 12. a4 {[%cal Ba2a4,Ba4a5][%mdl 32]} Kb8 {[%emt 0:02:44]} 13. Nd2 Rhe8 {[%emt 0:01:09]} 14. b4 {[%emt 0:02:56]} Bc7 {[%emt 0:05:10]} 15. a5 {[%emt 0:01:21]} Nf8 {[%emt 0:01:22]} 16. Nc4 {[%emt 0:06:01]} (16. Rhb1 $16) 16... N6d7 $14 {[%emt 0:03:48]} 17. Rhb1 {[%emt 0:04:48]} a6 {[%emt 0:02:15]} 18. c3 {[%emt 0:06:45]} Ne6 {[%emt 0:00:47] [#]} 19. g3 $146 {[%emt 0:02:27] Repels Nf4+} ({Predecessor:} 19. Rd1 f6 20. Rd2 Nf4+ 21. Nxf4 exf4 22. Bd4 Ne5 23. Nxe5 Bxe5 24. Rad1 Bxd4 25. Rxd4 Rxd4 26. Rxd4 {½-½ Shahinyan,D (2469)-Kohler,A (2121) Titled Tuesday intern op 26th Oct blitz 2021 (6)}) 19... g6 {[%emt 0:02:58]} 20. Rf1 {[%emt 0:04:34]} f5 {[%emt 0:03:40]} 21. Rad1 {[%emt 0:00:54]} Nf6 {[%emt 0:11:36]} 22. exf5 {[%emt 0:06:43]} (22. Ncxe5 fxe4 23. fxe4 Nxe4 $17) 22... gxf5 {[%emt 0:00:13]} 23. Ndxe5 {[%emt 0:02:09]} ({But not} 23. Ncxe5 $6 f4 24. Bb6 (24. Bxf4 Nxf4+ 25. gxf4 Nd5 $11) (24. gxf4 Nd5 $11) 24... fxg3 25. hxg3 Nd5 26. Bxc7+ Nexc7 $11) 23... Nd5 {[%emt 0:04:13]} 24. Rd3 {[%emt 0:09:01]} f4 {[%emt 0:04:35]} 25. Bb6 {[%emt 0:11:23]} Bxe5 $1 {[%emt 0:05:45]} 26. Nxe5 {[%emt 0:06:11]} Nec7 {[%emt 0:00:55] A dynamic duo of knights.} 27. Bd4 {[%emt 0:07:28]} Nb5 {[%emt 0:00:06]} 28. Kf2 {[%emt 0:12:52]} Nxd4 {[%emt 0:04:20]} 29. cxd4 {[%emt 0:00:32]} (29. Rxd4 $142 Rxe5 30. c4) 29... Nxb4 $11 {[%emt 0:01:11]} 30. Rdd1 {[%emt 0:01:01]} Nc2 {[%emt 0:00:03]} (30... Rd5 $5) 31. gxf4 {[%emt 0:03:11][%cal Od4d5]} Nxd4 {[%emt 0:01:07]} 32. Rb1 {[%emt 0:05:54]} Kc7 {[%emt 0:01:19]} (32... Rd5 $5 {[%cal Rd5a5]}) 33. Rb2 {[%emt 0:00:23]} Rd5 {[%emt 0:01:45]} 34. Rfb1 {[%emt 0:01:17]} Nb5 {[%emt 0:00:44]} 35. Rg1 {[%emt 0:00:45]} Re7 $1 {[%emt 0:00:15] Against Rg7} 36. Rg5 {[%emt 0:01:35]} Rd4 {[%emt 0:03:24]} 37. Kg3 {[%emt 0:00:48]} Nc3 {[%emt 0:01:13]} (37... Nd6 $5 {[%cal Rh7h6]}) 38. h4 {[%emt 0:02:27]} (38. Rc2 $11 Nd5 39. Rc4 Nxf4 40. Rxd4 Ne2+ 41. Kg4 Nxd4 42. f4) 38... Nd5 $17 {[%emt 0:00:46]} 39. Ng4 {[%emt 0:01:00]} Nxf4 {[%emt 0:01:05]} 40. Nf6 {[%emt 0:00:31]} Ne2+ {[%emt 0:00:38]} 41. Kf2 {[%emt 0:00:21]} (41. Kg2 $17) 41... Rxh4 $1 $19 {[%emt 0:31:14]} 42. Ng4 {[%emt 0:00:40]} (42. Kg2 {was worth a try.}) 42... Nd4 {[%emt 0:02:56]} 43. Kg2 {[%emt 0:02:23]} h5 {[%emt 0:00:00]} 44. Ne5 {[%emt 0:03:19]} Ne6 {[%emt 0:00:00] Black is clearly winning.} 45. Rg8 {[%emt 0:01:26]} Ra4 {[%emt 0:00:00] [#] ...Nf4+ would be deadly.} 46. Ng6 {[%emt 0:02:02]} Rf7 {[%emt 0:00:00]} 47. Re2 {[%emt 0:01:21]} Nd4 {[%emt 0:00:00]} 48. Re4 {[%emt 0:06:50]} (48. Ne5 $142) 48... Ra2+ {[%emt 0:00:00]} ({And not} 48... Rxf3 49. Re7+ (49. Rxd4 $2 Rxd4 50. Kxf3 Rg4 $17) 49... Kd6 50. Rd8+ Kc5 51. Re5+ Kc4 52. Rxd4+ {[%mdl 64] Remove Defender} Kxd4 53. Kxf3 Ra3+ 54. Kf4 $11) 49. Kg3 {[%emt 0:00:27]} Rxf3+ {[%emt 0:00:00]} 50. Kh4 {[%emt 0:00:12]} Nf5+ {[%emt 0:00:00]} 51. Kxh5 {[%emt 0:00:00]} Rg2 {[%emt 0:00:00] Weighted Error Value: White=0.26 (precise) /Black=0.06 (flawless)} 0-1

[Event "1st FIDE Olympiad DIS 2023"]
[Site "Belgrade"]
[Date "2023.02.02"]
[Round "4.4"]
[White "Vuljanic, Ana"]
[Black "Bolotov, Toktobek"]
[Result "1-0"]
[ECO "A69"]
[WhiteElo "1613"]
[BlackElo "1437"]
[Annotator "NA RC COMBH"]
[PlyCount "57"]
[EventDate "2023.01.30"]
[EventType "team-tourn"]
[EventCountry "SRB"]
[SourceTitle "playchess.com"]
[Source "ChessBase"]
[SourceQuality "1"]
[WhiteTeam "Croatia"]
[BlackTeam "Kyrgyzstan"]
[WhiteTeamCountry "CRO"]
[BlackTeamCountry "KGZ"]
[TimeControl "40/5400+30:1800+30"]

1. d4 {[%emt 0:00:06]} Nf6 {[%emt 0:00:09]} 2. c4 {[%emt 0:00:09]} g6 {[%emt 0:00:10]} 3. Nc3 {[%emt 0:00:09]} Bg7 {[%emt 0:00:09]} 4. e4 {[%emt 0:00:16]} d6 {[%emt 0:00:09]} 5. f4 {[%emt 0:00:28]} O-O {[%emt 0:00:16]} 6. Nf3 {[%emt 0:00:20]} c5 {[%emt 0:00:07]} 7. d5 {[%emt 0:00:23]} e6 {[%emt 0:00:09]} 8. Be2 {[%emt 0:00:44]} exd5 {[%emt 0:00:09]} 9. cxd5 {[%emt 0:00:28]} Re8 {[%emt 0:00:41]} 10. e5 {[%emt 0:01:35]} dxe5 {[%emt 0:00:53]} 11. fxe5 {[%emt 0:00:21]} Ng4 {[%emt 0:00:13]} 12. e6 {[%emt 0:02:12]} fxe6 {[%emt 0:00:22]} 13. Bg5 {[%emt 0:00:56]} Bxc3+ {[%emt 0:00:24]} 14. bxc3 {[%emt 0:00:42]} Qxd5 {[%emt 0:00:11]} 15. Qa4 {[%emt 0:03:03]} Nf6 {[%emt 0:03:06]} 16. Bxf6 {[%emt 0:01:37]} Bd7 {[%emt 0:00:15]} 17. Qh4 {[%emt 0:02:36]} h5 {[%emt 0:01:22]} 18. O-O {[%emt 0:09:16]} Bc6 {[%emt 0:03:16]} 19. Rad1 {[%emt 0:10:41]} Qe4 {[%emt 0:01:01]} 20. Qxe4 {[%emt 0:10:46]} Bxe4 {[%emt 0:00:41]} 21. Ng5 {[%emt 0:02:49]} Bd5 {[%emt 0:01:09]} 22. Bf3 {[%emt 0:08:10]} Bxf3 {[%emt 0:02:26]} 23. Rxf3 {[%emt 0:00:54]} b5 {[%emt 0:01:20]} 24. Rd6 {[%emt 0:04:50]} a5 {[%emt 0:00:56]} 25. Be5 {[%emt 0:01:48]} Ra7 {[%emt 0:00:59]} 26. Rf6 {[%emt 0:04:29]} Rg7 {[%emt 0:00:56]} 27. Rfxe6 {[%emt 0:00:57]} Rxe6 {[%emt 0:00:18]} 28. Rxe6 {[%emt 0:00:35]} Kf8 {[%emt 0:02:12]} 29. Bd6+ {[%emt 0:01:27]} 1-0

[Event "1st FIDE Olympiad DIS 2023"]
[Site "Belgrade"]
[Date "2023.02.02"]
[Round "4.5"]
[White "Gruenfeld, Yehuda"]
[Black "Sarkar, Justin"]
[Result "1-0"]
[ECO "C96"]
[WhiteElo "2414"]
[BlackElo "2345"]
[Annotator "TA"]
[PlyCount "93"]
[EventDate "2023.01.30"]
[EventType "team-tourn"]
[EventCountry "SRB"]
[SourceTitle "playchess.com"]
[Source "ChessBase"]
[SourceQuality "1"]
[WhiteTeam "Israel"]
[BlackTeam "United States"]
[WhiteTeamCountry "ISR"]
[BlackTeamCountry "USA"]
[TimeControl "40/5400+30:1800+30"]

{[%evp 32,93,11,0,14,-12,75,54,118,102,110,105,99,100,97,94,103,95,105,97,148,148,148,148,149,148,148,150,177,164,181,171,183,164,179,168,182,189,153,185,172,178,178,166,165,147,142,160,227,227,206,205,258,174,266,249,334,308,692,681,1081,1085,1081,1079]} 1. e4 {[%emt 0:00:30]} e5 {[%emt 0:00:30]} 2. Nf3 {[%emt 0:00:30]} Nc6 {[%emt 0:00:09]} 3. Bb5 {[%emt 0:00:03]} a6 {[%emt 0:00:14]} 4. Ba4 {[%emt 0:00:05]} Nf6 {[%emt 0:00:43]} 5. O-O {[%emt 0:00:19]} Be7 {[%emt 0:00:16]} 6. Re1 {[%emt 0:00:05]} b5 {[%emt 0:00:05]} 7. Bb3 {[%emt 0:00:05]} d6 {[%emt 0:00:10]} 8. c3 {[%emt 0:00:06]} O-O {[%emt 0:00:24]} 9. h3 {[%emt 0:00:04]} Na5 {[%emt 0:01:27]} 10. Bc2 {[%emt 0:00:06]} c5 {[%emt 0:00:13]} 11. d4 {[%emt 0:00:05]} Nd7 {[%emt 0:01:43]} 12. Nbd2 {[%emt 0:01:13]} exd4 {[%emt 0:01:16]} 13. cxd4 {[%emt 0:00:12]} Nc6 {[%emt 0:00:22]} 14. Nf1 {[%emt 0:02:22]} cxd4 {[%emt 0:00:22]} 15. Nxd4 {[%emt 0:00:13]} Nxd4 {[%emt 0:00:12]} 16. Qxd4 {[%emt 0:00:10]} Ne5 {[%emt 0:00:13]} 17. Qd1 {[%emt 0:01:34]} Be6 {[%emt 0:00:50] C96: Closed Ruy Lopez: Chigorin Defence: 11 d4, replies other than 11...Qc7.} 18. f4 {[%emt 0:07:46]} Nc4 {[%emt 0:03:58]} (18... Nc6 $1 $11) 19. b3 $16 {[%emt 0:00:38]} Nb6 {[%emt 0:06:57]} (19... Na5 $1 $14) 20. Bb2 {[%emt 0:01:52] [#]} Bh4 $146 {[%emt 0:04:01]} ({Predecessor:} 20... d5 21. f5 Bc8 22. Qg4 f6 23. Rad1 Qc7 24. Bb1 Bb7 25. Ng3 Rad8 26. Nh5 Bc5+ {0-1 Janeva,M (2058)-Zlatanova,E (2068) BUL-chT2 (Women) 58th 2008 (1.2)}) 21. Re2 {[%emt 0:01:11]} Bf6 {[%emt 0:00:19]} 22. Bd4 {[%emt 0:00:08]} Rc8 {[%emt 0:03:41]} 23. Ne3 {[%emt 0:01:09]} Rc6 {[%emt 0:04:35]} 24. Qd3 {[%emt 0:02:22] And now e5 would win.} Bxd4 {[%emt 0:01:48]} 25. Qxd4 {[%emt 0:00:08]} Qf6 {[%emt 0:03:05]} ({Better is} 25... Kh8) 26. Qxf6 {[%emt 0:00:44]} gxf6 {[%emt 0:00:04]} 27. Rd1 {[%emt 0:06:48]} Rd8 {[%emt 0:01:59]} 28. Rd4 {[%emt 0:00:00]} Kf8 {[%emt 0:13:51]} 29. Kf2 {[%emt 0:00:00]} a5 {[%emt 0:05:41]} 30. Red2 {[%emt 0:00:00]} b4 {[%emt 0:12:24]} 31. Bd1 {[%emt 0:00:00]} Ke7 {[%emt 0:03:13]} 32. Bf3 {[%emt 0:01:10]} Rc5 {[%emt 0:03:08]} 33. h4 {[%emt 0:12:54][%cal Bh3h4,Bh4h5,Bh5h6][%mdl 32]} Bc8 {[%emt 0:00:26]} 34. h5 {[%emt 0:04:19]} Be6 {[%emt 0:10:09]} 35. h6 {[%emt 0:01:02]} Bc8 {[%emt 0:00:17]} 36. Bg4 {[%emt 0:02:33]} Bxg4 {[%emt 0:01:06]} 37. Nxg4 {[%emt 0:00:15]} f5 {[%emt 0:01:30]} 38. Ne3 {[%emt 0:00:54]} fxe4 {[%emt 0:00:19]} 39. Rxe4+ {[%emt 0:00:05]} Kf8 {[%emt 0:01:05] [#]} (39... Kd7 $16 {might work better.} 40. g4 Kc6) 40. g4 $1 $18 {[%emt 0:00:11][%cal Bg2g4,Bg4g5,Bg5g6][%mdl 32]} d5 {[%emt 0:01:54]} 41. Re5 {[%emt 0:32:06]} Rc6 {[%emt 0:30:27]} 42. Nf5 {[%emt 0:00:29]} (42. Nxd5 $2 {is the wrong capture.} Rcd6 43. Nxb6 Rxd2+ 44. Kf3 Rxa2 $19) 42... Rg6 {[%emt 0:01:12]} (42... Rd7 {was called for.} 43. Rde2 Rc8) 43. Kf3 {[%emt 0:00:00]} Rc8 {[%emt 0:00:22]} 44. g5 {[%emt 0:00:00]} Rc3+ $2 {[%emt 0:03:16]} (44... a4 45. Re7 axb3) 45. Kg2 {[%emt 0:00:00] White is clearly winning.} Re6 {[%emt 0:11:35]} 46. Rxe6 {[%emt 0:00:00]} fxe6 {[%emt 0:00:04] [#]} 47. g6 $1 {[%emt 0:00:00][%mdl 512] Black got outplayed after the opening.   Weighted Error Value: White=0.06 (flawless) /Black=0.40} 1-0

[Event "1st FIDE Olympiad DIS 2023"]
[Site "Belgrade"]
[Date "2023.02.02"]
[Round "4.5"]
[White "Rivas Cabrera, Edgar"]
[Black "Orsag, Milan"]
[Result "1/2-1/2"]
[ECO "A21"]
[WhiteElo "1987"]
[BlackElo "2308"]
[Annotator "TA"]
[PlyCount "81"]
[EventDate "2023.01.30"]
[EventType "team-tourn"]
[EventCountry "SRB"]
[SourceTitle "playchess.com"]
[Source "ChessBase"]
[SourceQuality "1"]
[WhiteTeam "Venezuela"]
[BlackTeam "Czech Republic"]
[WhiteTeamCountry "VEN"]
[BlackTeamCountry "CZE"]
[TimeControl "40/5400+30:1800+30"]

{[%evp 17,81,10,12,15,10,0,4,-13,0,-14,-10,-24,-8,-34,-19,-53,0,0,20,-26,-32,-35,31,9,0,0,3,-102,-97,-68,-79,-147,-24,-54,-36,-23,-54,-55,0,-8,-8,-8,-8,-10,0,-8,-8,-8,0,-8,-8,-8,-7,-6,-8,-189,-190,-189,-188,-184,0,0,0,0,0,0]} 1. c4 {[%emt 0:01:24]} g6 {[%emt 0:01:44]} 2. Nc3 {[%emt 0:01:04]} Bg7 {[%emt 0:00:08]} 3. g3 {[%emt 0:00:25]} e5 {[%emt 0:00:38]} 4. Bg2 {[%emt 0:00:08]} d6 {[%emt 0:00:59]} 5. d3 {[%emt 0:13:58]} f5 {[%emt 0:09:05]} 6. e3 {[%emt 0:05:11]} Nf6 {[%emt 0:00:50]} 7. Nge2 {[%emt 0:00:07]} O-O {[%emt 0:01:16]} 8. O-O {[%emt 0:00:11]} c6 {[%emt 0:01:50] 8...a5 is the hot move.} 9. Rb1 {[%emt 0:08:29]} a5 {[%emt 0:03:23]} 10. b3 {[%emt 0:05:46] has lost popularity (10.a3). A21: English Opening: 1...e5 2 Nc3.} Na6 {[%emt 0:05:33]} 11. a3 {[%emt 0:03:33]} Be6 {[%emt 0:04:33]} 12. Qc2 {[%emt 0:16:01] [#]} d5 $146 {[%emt 0:14:05]} ({Predecessor:} 12... Qe7 13. f4 Bf7 14. h3 Rac8 15. e4 exf4 16. Bxf4 fxe4 17. dxe4 Nc5 18. Rbd1 Rcd8 {0-1 Patriarca,L (2266)-Zambrana,O (2421) American Continental 03rd 2005 (3)}) 13. cxd5 {[%emt 0:05:19]} Nxd5 {[%emt 0:01:02]} 14. Nxd5 {[%emt 0:08:08]} Bxd5 {[%emt 0:00:22]} 15. e4 {[%emt 0:04:07]} Be6 {[%emt 0:01:56]} 16. Be3 {[%emt 0:02:21]} Rc8 {[%emt 0:04:41]} (16... Qd6 $15 17. exf5 Bxf5) 17. Rfd1 $11 {[%emt 0:03:39]} Qe7 {[%emt 0:03:36]} 18. Qc1 {[%emt 0:04:34]} (18. d4 $142) 18... Qf7 {[%emt 0:04:00]} 19. Qc2 {[%emt 0:00:09]} c5 {[%emt 0:01:17]} (19... Nc7 $15) 20. f4 {[%emt 0:06:14]} fxe4 {[%emt 0:05:23]} 21. dxe4 {[%emt 0:01:10]} (21. Bxe4 {with more complications.} Nc7 22. fxe5 Nd5 23. Bxd5 Bxd5 24. Rf1) 21... c4 {[%emt 0:03:18]} 22. b4 {[%emt 0:01:21]} (22. bxc4 $11 {was the only way to keep the balance.} Bxc4 23. Rb6) 22... axb4 $17 {[%emt 0:00:24]} 23. axb4 {[%emt 0:00:01]} Qe7 {[%emt 0:00:57]} 24. Qa4 {[%emt 0:03:55]} (24. Rf1 $142) 24... Rfd8 {[%emt 0:05:45]} (24... c3 $17 25. f5 c2 26. fxe6 Qxe6) 25. Rxd8+ {[%emt 0:02:17]} Qxd8 {[%emt 0:01:36]} (25... Rxd8 $5 26. b5 Nc5 $15) 26. Rd1 {[%emt 0:01:58] Repels Qd3} Qe7 {[%emt 0:00:57] Threatens to win with ...Bg4.} 27. f5 $1 {[%emt 0:00:31]} Bf7 {[%emt 0:04:44]} (27... gxf5 $15 28. exf5 Bxf5) 28. Rd7 {[%emt 0:01:01]} Qxb4 {[%emt 0:00:31]} 29. Qxb4 {[%emt 0:00:11]} Nxb4 {[%emt 0:00:04][%cal Ba6b4,Bb4c2,Bc2d4][%mdl 32]} 30. Rxb7 {[%emt 0:00:12]} Nc2 {[%emt 0:00:18]} 31. fxg6 {[%emt 0:01:17]} hxg6 {[%emt 0:00:23]} 32. Bh3 {[%emt 0:00:22]} Rc6 {[%emt 0:04:56]} 33. Bg5 {[%emt 0:00:48]} Nd4 {[%emt 0:00:51]} 34. Kf2 {[%emt 0:00:14] Repels Nf3} c3 {[%emt 0:02:32][%cal Bc4c3,Bc3c2][%mdl 32]} 35. Rb8+ {[%emt 0:00:44]} Kh7 {[%emt 0:00:09] [#] Hoping for ...Bh6.} 36. Rc8 $2 {[%emt 0:00:59]} (36. Rb7 $11 {and White stays safe.} Nxe2 37. Kxe2 (37. Rxf7 $2 Nd4 $17) 37... Bc4+ 38. Kd1) 36... Rxc8 $19 {[%emt 0:03:23]} 37. Bxc8 {[%emt 0:00:01]} c2 {[%emt 0:00:07]} 38. Nc1 {[%emt 0:00:25] [#]} Nb3 $2 {[%emt 0:00:34]} ({Better is} 38... Bf8 $1 $19 {And now ...Nb3 would win.} 39. Ba6 Nb3) 39. Nxb3 $11 {[%emt 0:00:34] The position is equal.} Bxb3 {[%emt 0:00:07]} 40. Ke2 {[%emt 0:00:14]} Bf8 {[%emt 0:03:37] White must now prevent ...Ba3.} 41. Bc1 $1 {[%emt 0:30:13] Prevents Ba3.   Weighted Error Value: White=0.25 (precise) /Black=0.24 (precise)} 1/2-1/2

[Event "1st FIDE Olympiad DIS 2023"]
[Site "Belgrade"]
[Date "2023.02.02"]
[Round "4.6"]
[White "Obodchuk, Andrei"]
[Black "Streltsov, Alexey"]
[Result "1/2-1/2"]
[ECO "D27"]
[WhiteElo "2317"]
[BlackElo "2317"]
[Annotator "TA"]
[PlyCount "41"]
[EventDate "2023.01.30"]
[EventType "team-tourn"]
[EventCountry "SRB"]
[SourceTitle "playchess.com"]
[Source "ChessBase"]
[SourceQuality "1"]
[WhiteTeam "FID"]
[BlackTeam "Israel"]
[BlackTeamCountry "ISR"]
[TimeControl "40/5400+30:1800+30"]

{[%evp 11,41,29,32,16,1,14,26,4,27,1,12,8,13,0,25,29,28,25,41,41,41,49,44,19,16,11,15,-8,-14,-22,-28,-24]} 1. d4 {[%emt 0:00:22]} d5 {[%emt 0:00:06]} 2. c4 {[%emt 0:00:12]} dxc4 {[%emt 0:00:05]} 3. Nf3 {[%emt 0:00:18]} Nf6 {[%emt 0:00:07]} 4. e3 {[%emt 0:00:16]} e6 {[%emt 0:00:06]} 5. Bxc4 {[%emt 0:00:04]} c5 {[%emt 0:00:10]} 6. O-O {[%emt 0:00:15]} a6 {[%emt 0:00:04]} 7. Be2 {[%emt 0:01:00] 7.b3 is becoming the main line. D27: Queen's Gambit Accepted: Classical main line: 7 e4!? and 7 a4.} Nbd7 {[%emt 0:00:10]} 8. b3 {[%emt 0:01:45]} b6 {[%emt 0:01:00][%cal Bb7b6,Bb6b5][%mdl 32]} 9. Bb2 {[%emt 0:00:11] White has an edge.} Bb7 {[%emt 0:00:25]} 10. Nbd2 {[%emt 0:09:02]} Be7 {[%emt 0:00:20]} 11. dxc5 {[%emt 0:00:30]} Nxc5 {[%emt 0:11:58]} 12. Nc4 {[%emt 0:06:01] [#]} b5 $146 {[%emt 0:09:09]} ({Predecessor:} 12... Bd5 13. b4 Bxc4 14. Qxd8+ Rxd8 15. Bxc4 Na4 16. Bd4 {½-½ Kratochvil,V (2263)-Geissler,W (2329) VW-Cup8 Gr46 email 2015}) 13. Qxd8+ {[%emt 0:05:47]} Rxd8 {[%emt 0:00:54]} 14. Na5 {[%emt 0:00:21]} Be4 {[%emt 0:06:12]} 15. Bd4 {[%emt 0:19:10]} Nb7 {[%emt 0:12:11]} 16. Nxb7 {[%emt 0:00:00]} Bxb7 {[%emt 0:00:07]} 17. Rfc1 {[%emt 0:00:00]} (17. a4 $5 {[%cal Ra4b5]} b4 18. Rfc1 $14) 17... Ba3 {[%emt 0:11:19]} 18. Rc7 {[%emt 0:00:00]} Rd7 {[%emt 0:00:08]} 19. Rxd7 {[%emt 0:00:00]} (19. Rc2 $5 {[%cal Rf3e5]}) 19... Kxd7 {[%emt 0:00:06]} 20. Rd1 {[%emt 0:00:00]} Ke7 {[%emt 0:01:08]} 21. Ne1 {[%emt 0:00:00] Weighted Error Value: White=0.08 (flawless) /Black=0.06 (flawless)} 1/2-1/2